fUST/lending_fUST_20260217
["ID","MTS","AMOUNT","RATE_DAILY","PERIOD"]
[405788078,1771309841793,-487.0,0.00017325,2]
[405788080,1771309841802,-5361.91300472,0.000175,2]
[405788082,1771309841812,-1041.66666667,0.000175,2]
[405788188,1771309843084,-250.0,0.00015915,2]
[405788190,1771309843094,-250.0,0.00015915,2]
[405788192,1771309843103,-51.770708,0.00015915,2]
[405788436,1771309845785,-198.229292,0.00015915,2]
[405788437,1771309845794,-250.0,0.00015915,2]
[405788438,1771309845803,-250.0,0.00015915,2]
[405788439,1771309845813,-250.0,0.00015915,2]
[405788440,1771309845823,-250.0,0.00015915,2]
[405788441,1771309845834,-266.90825483,0.00015915,2]
[405788442,1771309845849,-487.0,0.00017325,2]
[405788443,1771309845860,-10.45646511,0.00017325,2]
[405788495,1771309901805,-500.0,0.00015422,2]
[405788496,1771309901828,-465.7033787,0.00016147,2]
[405788497,1771309901838,-34.2966213,0.00016438,2]
[405788498,1771309901849,-10.36187964,0.00016438,2]
[405788526,1771310738100,-389.63013544,0.00015324,2]
[405788527,1771310738126,-253.16103308,0.00015479,2]
[405788528,1771310738150,-643.0,0.00015479,2]
[405788529,1771310738173,-300.0,0.00015728,2]
[405788530,1771310738197,-1200.0,0.00015728,2]
[405788531,1771310738222,-300.0,0.00015729,2]
[405788532,1771310738247,-300.0,0.00015729,2]
[405788533,1771310738274,-300.0,0.00015729,2]
[405788534,1771310738299,-300.0,0.00015729,2]
[405788535,1771310738325,-300.0,0.00015729,2]
[405788536,1771310738353,-100.44417299,0.00015729,2]
[405788540,1771310825079,-300.0,0.00015728,2]
[405788541,1771310825101,-199.55582701,0.00015729,2]
[405788542,1771310825123,-300.0,0.00015729,2]
[405788543,1771310825145,-300.0,0.00015729,2]
[405788544,1771310825167,-300.0,0.00015729,2]
[405788545,1771310825189,-300.0,0.00015729,2]
[405788546,1771310825211,-300.0,0.00015729,2]
[405788547,1771310825233,-300.0,0.00015729,2]
[405788548,1771310825256,-288.12015269,0.00015729,2]
[405788549,1771310829121,-11.87984731,0.00015729,2]
[405788550,1771310829143,-300.0,0.00015729,2]
[405788551,1771310829165,-300.0,0.00015729,2]
[405788552,1771310829187,-296.43129818,0.00015729,2]
[405788553,1771310834077,-303.56870182,0.00015729,2]
[405788554,1771310834098,-253.19136159,0.00015729,2]
[405788555,1771310834119,-210.36187964,0.00015729,2]
[405788556,1771310834140,-260.78331214,0.00016234,2]
[405788557,1771310834160,-444.04260475,0.00016234,2]
[405788558,1771310834180,-503.61865035,0.00016234,2]
[405788559,1771310834203,-500.0,0.00016234,2]
[405788560,1771310834223,-241.98718011,0.00016234,2]
[405788561,1771310834244,-500.0,0.00016234,2]
[405788562,1771310834266,-500.0,0.00016234,2]
[405788563,1771310834287,-500.0,0.00016234,2]
[405788564,1771310834307,-500.0,0.00016234,2]
[405788565,1771310834328,-500.0,0.00016234,2]
[405788566,1771310834348,-452.90211835,0.00016234,2]
[405788567,1771310834368,-500.0,0.00016234,2]
[405788568,1771310834390,-500.0,0.00016234,2]
[405788569,1771310834411,-336.69879997,0.00016234,2]
[405788570,1771310834432,-500.0,0.00016234,2]
[405788571,1771310834453,-500.0,0.00016234,2]
[405788572,1771310834473,-249.08300053,0.00016234,2]
[405788573,1771310834494,-500.0,0.00016234,2]
[405788574,1771310834515,-500.0,0.00016234,2]
[405788575,1771310834535,-500.0,0.00016234,2]
[405788576,1771310834556,-500.0,0.00016234,2]
[405788577,1771310834578,-500.0,0.00016234,2]
[405788578,1771310834598,-500.0,0.00016234,2]
[405788579,1771310834618,-500.0,0.00016234,2]
[405788580,1771310834640,-500.0,0.00016234,2]
[405788581,1771310834662,-500.0,0.00016234,2]
[405788582,1771310834683,-500.0,0.00016234,2]
[405788583,1771310834710,-500.0,0.00016234,2]
[405788584,1771310834732,-500.0,0.00016234,2]
[405788585,1771310834754,-500.0,0.00016234,2]
[405788586,1771310834777,-500.0,0.00016234,2]
[405788587,1771310834799,-500.0,0.00016234,2]
[405788588,1771310834819,-500.0,0.00016234,2]
[405788589,1771310834841,-500.0,0.00016234,2]
[405788590,1771310834863,-500.0,0.00016234,2]
[405788591,1771310834884,-500.0,0.00016234,2]
[405788592,1771310834905,-500.0,0.00016234,2]
[405788593,1771310834926,-500.0,0.00016234,2]
[405788594,1771310834948,-203.41435863,0.00016234,2]
[405788595,1771310848073,-296.58564137,0.00016234,2]
[405788596,1771310848095,-64.23376367,0.00016234,2]
[405788633,1771311031973,-187.164289,0.00015663,2]
[405788634,1771311031983,-4350.6162606,0.00016134,2]
[405788635,1771311031992,-500.0,0.00016431,2]
[405788636,1771311032002,-300.0,0.00016437,2]
[405788637,1771311032012,-300.0,0.00016437,2]
[405788638,1771311032021,-616.0,0.00016437,2]
[405788639,1771311032032,-500.0,0.00016438,2]
[405788640,1771311032041,-500.0,0.00016438,2]
[405788641,1771311032050,-500.0,0.00016438,2]
[405788642,1771311032060,-500.0,0.00016438,2]
[405788644,1771311032069,-500.0,0.00016438,2]
[405788646,1771311032078,-500.0,0.00016438,2]
[405788648,1771311032088,-150.57255939,0.00016438,2]
[405788650,1771311032097,-300.0,0.00016456,2]
[405788652,1771311032106,-300.0,0.00016456,2]
[405788653,1771311032121,-300.0,0.00016456,2]
[405788654,1771311032140,-300.0,0.00016456,2]
[405788655,1771311032149,-300.0,0.00016456,2]
[405788656,1771311032160,-300.0,0.00016456,2]
[405788657,1771311032170,-300.0,0.00016456,2]
[405788658,1771311032179,-300.0,0.00016456,2]
[405788659,1771311032188,-300.0,0.00016456,2]
[405788660,1771311032198,-300.0,0.00016456,2]
[405788661,1771311032208,-300.0,0.00016456,2]
[405788662,1771311032217,-300.0,0.00016456,2]
[405788663,1771311032227,-300.0,0.00016456,2]
[405788664,1771311032236,-300.0,0.00016456,2]
[405788665,1771311032245,-300.0,0.00016456,2]
[405788666,1771311032255,-600.0,0.00016558,2]
[405788667,1771311032264,-500.0,0.00016712,2]
[405788668,1771311032273,-500.0,0.00016712,2]
[405788669,1771311032282,-515.33947278,0.00016712,2]
[405788670,1771311032291,-500.0,0.00016712,2]
[405788671,1771311032301,-168.0,0.00016766,2]
[405788672,1771311032311,-168.0,0.00016954,2]
[405788673,1771311032320,-250.0,0.0001698,2]
[405788674,1771311032330,-500.0,0.0001698,2]
[405788675,1771311032339,-174.61919141,0.0001698,2]
[405788676,1771311032349,-250.0,0.0001698,2]
[405788677,1771311032361,-500.0,0.0001698,2]
[405788678,1771311032370,-181.08010149,0.0001698,2]
[405788679,1771311032379,-250.0,0.0001698,2]
[405788680,1771311032388,-500.0,0.0001698,2]
[405788681,1771311032398,-187.78006525,0.0001698,2]
[405788682,1771311032407,-250.0,0.0001698,2]
[405788683,1771311032416,-500.0,0.0001698,2]
[405788684,1771311032426,-194.72792766,0.0001698,2]
[405788685,1771311032435,-250.0,0.0001698,2]
[405788686,1771311032444,-500.0,0.0001698,2]
[405788687,1771311032453,-201.93286099,0.0001698,2]
[405788688,1771311032462,-250.0,0.0001698,2]
[405788689,1771311032472,-500.0,0.0001698,2]
[405788690,1771311032481,-500.0,0.0001698,2]
[405788691,1771311032490,-250.0,0.0001698,2]
[405788692,1771311032499,-209.40437684,0.0001698,2]
[405788693,1771311032508,-276.42248092,0.0001698,2]
[405788694,1771311032517,-417.07633844,0.0001698,2]
[405788695,1771311032527,-500.0,0.0001698,2]
[405788696,1771311032537,-250.0,0.0001698,2]
[405788697,1771311032547,-217.15233878,0.0001698,2]
[405788698,1771311032563,-500.0,0.0001698,2]
[405788699,1771311032573,-250.0,0.0001698,2]
[405788700,1771311032582,-225.18697532,0.0001698,2]
[405788701,1771311032592,-500.0,0.0001698,2]
[405788702,1771311032601,-250.0,0.0001698,2]
[405788703,1771311032611,-233.51889341,0.0001698,2]
[405788704,1771311032621,-500.0,0.0001698,2]
[405788705,1771311032631,-250.0,0.0001698,2]
[405788706,1771311032640,-242.15909246,0.0001698,2]
[405788707,1771311032650,-500.0,0.0001698,2]
[405788708,1771311032659,-250.0,0.0001698,2]
[405788709,1771311032669,-251.11897888,0.0001698,2]
[405788710,1771311032678,-500.0,0.0001698,2]
[405788711,1771311032688,-250.0,0.0001698,2]
[405788712,1771311032697,-260.4103811,0.0001698,2]
[405788713,1771311032706,-287.27798571,0.0001698,2]
[405788714,1771311032718,-212.72201429,0.0001698,2]
[405788715,1771311032728,-250.0,0.0001698,2]
[405788716,1771311032737,-270.0455652,0.0001698,2]
[405788717,1771311032751,-203.309012,0.0001698,2]
[405788718,1771311032762,-296.690988,0.0001698,2]
[405788719,1771311032771,-250.0,0.0001698,2]
[405788720,1771311032782,-280.03725112,0.0001698,2]
[405788721,1771311032792,-500.0,0.0001698,2]
[405788722,1771311032801,-250.0,0.0001698,2]
[405788723,1771311032810,-290.39862941,0.0001698,2]
[405788724,1771311032820,-250.0,0.0001698,2]
[405788725,1771311032829,-500.0,0.0001698,2]
[405788726,1771311032838,-250.0,0.0001698,2]
[405788727,1771311032847,-301.1433787,0.0001698,2]
[405788728,1771311032858,-250.0,0.0001698,2]
[405788729,1771311032867,-500.0,0.0001698,2]
[405788730,1771311032877,-250.0,0.0001698,2]
[405788731,1771311032886,-250.0,0.0001698,2]
[405788732,1771311032895,-500.0,0.0001698,2]
[405788733,1771311032904,-250.0,0.0001698,2]
[405788734,1771311032913,-250.0,0.0001698,2]
[405788735,1771311032923,-250.0,0.0001698,2]
[405788736,1771311032932,-500.0,0.0001698,2]
[405788737,1771311032941,-250.0,0.0001698,2]
[405788738,1771311032950,-250.0,0.0001698,2]
[405788739,1771311032959,-500.0,0.0001698,2]
[405788740,1771311032969,-250.0,0.0001698,2]
[405788741,1771311032978,-250.0,0.0001698,2]
[405788742,1771311032987,-500.0,0.0001698,2]
[405788743,1771311032996,-250.0,0.0001698,2]
[405788744,1771311033006,-250.0,0.0001698,2]
[405788745,1771311033015,-250.0,0.0001698,2]
[405788746,1771311033025,-250.0,0.0001698,2]
[405788747,1771311033035,-250.0,0.0001698,2]
[405788748,1771311033045,-250.0,0.0001698,2]
[405788749,1771311033054,-250.0,0.0001698,2]
[405788750,1771311033063,-250.0,0.0001698,2]
[405788751,1771311033073,-250.0,0.0001698,2]
[405788752,1771311033082,-250.0,0.0001698,2]
[405788753,1771311033091,-250.0,0.0001698,2]
[405788754,1771311033101,-250.0,0.0001698,2]
[405788755,1771311033110,-250.0,0.0001698,2]
[405788756,1771311033119,-250.0,0.0001698,2]
[405788757,1771311033129,-250.0,0.0001698,2]
[405788758,1771311033138,-224.68202226,0.0001698,2]
[405788759,1771311033147,-250.0,0.0001698,2]
[405788760,1771311033157,-250.0,0.0001698,2]
[405788761,1771311033167,-500.0,0.00016985,2]
[405788762,1771311033176,-160.81329141,0.00016986,2]
[405788806,1771311038029,-339.18670859,0.00016986,2]
[405788808,1771311038039,-461.94329141,0.00016986,2]
[405788815,1771311038090,-38.05670859,0.00016986,2]
[405788816,1771311038100,-500.0,0.00016986,2]
[405788819,1771311038110,-500.0,0.00016989,2]
[405788820,1771311038120,-500.0,0.00016989,2]
[405788822,1771311038130,-500.0,0.00016989,2]
[405788825,1771311038141,-500.0,0.00016989,2]
[405788827,1771311038150,-500.0,0.00016989,2]
[405788828,1771311038160,-500.0,0.00016989,2]
[405788830,1771311038170,-100000.0,0.0001699,2]
[405788832,1771311038179,-168.0,0.00017007,2]
[405788834,1771311038189,-168.0,0.00017098,2]
[405788837,1771311038198,-176.94442741,0.00017175,2]
[405788839,1771311038208,-168.0,0.00017177,2]
[405788841,1771311038218,-713.0,0.0001718,2]
[405788843,1771311038226,-587.21,0.00017253,3]
[405788855,1771311038342,-500.0,0.0001726,2]
[405788857,1771311038352,-500.0,0.0001726,2]
[405788859,1771311038363,-334.77006319,0.0001726,2]
[405788861,1771311038372,-382.59435793,0.0001726,2]
[405788863,1771311038382,-597.20588058,0.0001726,2]
[405788865,1771311038391,-154.85484745,0.0001726,2]
[405788867,1771311038401,-278.73872542,0.0001726,2]
[405788869,1771311038410,-495.53551185,0.0001726,2]
[405788871,1771311038419,-500.0,0.0001726,2]
[405788873,1771311038429,-500.0,0.00017263,2]
[405788875,1771311038439,-500.0,0.00017263,2]
[405788877,1771311038448,-1909.5822148,0.0001732,2]
[405788879,1771311038458,-15898.77977908,0.0001732,2]
[405789096,1771311040628,-2106.62799643,0.0001732,2]
[405789366,1771311043673,-293.6,0.0001731,3]
[405789367,1771311043682,-193.75948239,0.0001732,2]
[405789370,1771311043694,-41941.038198,0.0001732,2]
[405789371,1771311043703,-151.0,0.0001732,2]
[405789373,1771311043712,-31592.19751899,0.00017325,2]
[405789375,1771311043724,-2680.87889995,0.00017325,2]
[405789576,1771311045995,-6291.59798741,0.00017325,2]
[405789898,1771311684153,-510.721281,0.00015287,2]
[405789899,1771311700887,-492.544264,0.00015783,2]
[405789900,1771311700915,-248.12753435,0.00015816,2]
[405789901,1771311700990,-2515.3908583,0.00015913,2]
[405789927,1771311730202,-1251.39307935,0.00015913,2]
[405789948,1771312030121,-1111.14151942,0.00015257,2]
[405789950,1771312051124,-2384.87691188,0.00015257,2]
[405789965,1771312150731,1503.9815687,0.00015104,2]
[405790002,1771312232157,-248.43210935,0.00015412,2]
[405790005,1771312232177,-317.58292152,0.00015566,2]
[405790073,1771312238282,-682.41707848,0.00015566,2]
[405790075,1771312238292,-986.26040825,0.00015913,2]
[405790077,1771312238303,-300.0,0.00016145,2]
[405790079,1771312238313,-182.54831849,0.00016146,2]
[405790081,1771312238325,-328.10023537,0.00016146,2]
[405790083,1771312238335,-500.0,0.00016146,2]
[405790085,1771312238344,-179.01436166,0.00016146,2]
[405790087,1771312238355,-320.98563834,0.00016146,2]
[405790089,1771312238365,-500.0,0.00016146,2]
[405790091,1771312238375,-500.0,0.00016146,2]
[405790093,1771312238385,-500.0,0.00016146,2]
[405790095,1771312238394,-500.0,0.00016146,2]
[405790096,1771312238403,-500.0,0.00016146,2]
[405790098,1771312238413,-500.0,0.00016146,2]
[405790100,1771312238422,-500.0,0.00016146,2]
[405790102,1771312238431,-500.0,0.00016146,2]
[405790104,1771312238440,-500.0,0.00016146,2]
[405790106,1771312238449,-500.0,0.00016146,2]
[405790108,1771312238458,-500.0,0.00016146,2]
[405790110,1771312238468,-500.0,0.00016146,2]
[405790112,1771312238478,-500.0,0.00016146,2]
[405790114,1771312238488,-500.0,0.00016146,2]
[405790116,1771312238497,-500.0,0.00016146,2]
[405790117,1771312238507,-500.0,0.00016146,2]
[405790119,1771312238516,-500.0,0.00016146,2]
[405790121,1771312238525,-500.0,0.00016146,2]
[405790123,1771312238534,-500.0,0.00016146,2]
[405790125,1771312238544,-500.0,0.00016146,2]
[405790126,1771312238554,-500.0,0.00016146,2]
[405790128,1771312238563,-500.0,0.00016146,2]
[405790130,1771312238575,-159.76656858,0.00016146,2]
[405790132,1771312238593,-500.0,0.00016146,2]
[405790134,1771312238603,-500.0,0.00016146,2]
[405790136,1771312238613,-500.0,0.00016146,2]
[405790138,1771312238622,-500.0,0.00016146,2]
[405790140,1771312238631,-500.0,0.00016146,2]
[405790142,1771312238641,-500.0,0.00016146,2]
[405790144,1771312238653,-500.0,0.00016146,2]
[405790146,1771312238670,-500.0,0.00016146,2]
[405790148,1771312238682,-500.0,0.00016146,2]
[405790150,1771312238692,-500.0,0.00016146,2]
[405790152,1771312238701,-500.0,0.00016146,2]
[405790154,1771312238710,-500.0,0.00016146,2]
[405790155,1771312238720,-500.0,0.00016146,2]
[405790157,1771312238730,-500.0,0.00016146,2]
[405790159,1771312238740,-500.0,0.00016146,2]
[405790161,1771312238750,-500.0,0.00016146,2]
[405790163,1771312238760,-500.0,0.00016146,2]
[405790165,1771312238769,-500.0,0.00016146,2]
[405790167,1771312238779,-500.0,0.00016146,2]
[405790169,1771312238789,-500.0,0.00016146,2]
[405790171,1771312238799,-500.0,0.00016146,2]
[405790173,1771312238808,-212.47797021,0.00016146,2]
[405790175,1771312238817,-500.0,0.00016146,2]
[405790177,1771312238827,-500.0,0.00016146,2]
[405790179,1771312238836,-500.0,0.00016146,2]
[405790180,1771312238845,-500.0,0.00016146,2]
[405790182,1771312238854,-500.0,0.00016146,2]
[405790184,1771312238863,-500.0,0.00016146,2]
[405790186,1771312238872,-500.0,0.00016146,2]
[405790188,1771312238882,-77.3860123,0.00016146,2]
[405790618,1771312243619,-422.6139877,0.00016146,2]
[405790620,1771312243630,-500.0,0.00016146,2]
[405790622,1771312243640,-500.0,0.00016146,2]
[405790623,1771312243649,-500.0,0.00016146,2]
[405790625,1771312243658,-726.94395489,0.00016146,2]
[405790627,1771312243668,-726.94395489,0.00016146,2]
[405790630,1771312243681,-726.94395489,0.00016146,2]
[405790632,1771312243691,-726.94395489,0.00016146,2]
[405790634,1771312243701,-726.94395489,0.00016146,2]
[405790636,1771312243710,-726.94395489,0.00016146,2]
[405790638,1771312243719,-726.94395489,0.00016146,2]
[405790639,1771312243728,-620.05005462,0.00016146,2]
[405790644,1771312243760,-106.89390027,0.00016146,2]
[405790646,1771312243769,-726.94395489,0.00016146,2]
[405790648,1771312243778,-566.36885007,0.00016146,2]
[405791859,1771312345864,1000.0,0.00013604,2]
[405791860,1771312346083,500.0,0.00013341,2]
[405791861,1771312676278,979.46138657,0.00014501,2]
[405791862,1771312677708,676.0337296,0.00014003,2]
[405791863,1771312684079,5000.0,0.000145,2]
[405791867,1771312870562,4020.53861343,0.000145,2]
[405791868,1771312880952,300.0,0.00014277,2]
[405791869,1771312908824,3995.0,0.000145,2]
[405791870,1771313113058,3750.60139585,0.000145,2]
[405791871,1771313136184,-229.34485551,0.00014669,2]
[405791872,1771313234077,-393.90756376,0.00014669,2]
[405791873,1771313244082,-2319.69808173,0.00014669,2]
[405791874,1771313244106,-77.57398225,0.00014716,2]
[405791875,1771313250112,-177.60566863,0.00014716,2]
[405791876,1771313250133,-341.14396099,0.00014897,2]
[405791877,1771313250156,-190.77498568,0.00014897,2]
[405791878,1771313250178,-278.65923291,0.00014898,2]
[405791879,1771313345086,-300.0,0.00014895,2]
[405791880,1771313345107,-184.39632469,0.00014896,2]
[405791881,1771313345132,-500.0,0.00014896,2]
[405791882,1771313345154,-500.0,0.00014896,2]
[405791883,1771313345178,-379.80374838,0.00014896,2]
[405791884,1771313345201,-174.34218045,0.00014896,2]
[405791885,1771313345224,-500.0,0.00014896,2]
[405791886,1771313345249,-500.0,0.00014896,2]
[405791887,1771313345273,-500.0,0.00014896,2]
[405791888,1771313345295,-500.0,0.00014896,2]
[405791889,1771313345318,-500.0,0.00014896,2]
[405791890,1771313345341,-500.0,0.00014896,2]
[405791891,1771313345365,-500.0,0.00014896,2]
[405791892,1771313345388,-500.0,0.00014896,2]
[405791893,1771313345411,-500.0,0.00014896,2]
[405791894,1771313345434,-500.0,0.00014896,2]
[405791895,1771313345456,-500.0,0.00014896,2]
[405791896,1771313345479,-500.0,0.00014896,2]
[405791897,1771313345506,-500.0,0.00014896,2]
[405791898,1771313345531,-500.0,0.00014896,2]
[405791899,1771313345555,-500.0,0.00014896,2]
[405791900,1771313345602,-500.0,0.00014896,2]
[405791901,1771313345626,-500.0,0.00014896,2]
[405791902,1771313345649,-500.0,0.00014896,2]
[405791903,1771313345671,-500.0,0.00014896,2]
[405791904,1771313345694,-500.0,0.00014896,2]
[405791905,1771313345718,-500.0,0.00014896,2]
[405791906,1771313345740,-500.0,0.00014896,2]
[405791907,1771313345763,-576.33017162,0.00014896,2]
[405791908,1771313345791,-500.0,0.00014896,2]
[405791909,1771313345819,-500.0,0.00014896,2]
[405791910,1771313345841,-500.0,0.00014896,2]
[405791911,1771313345863,-500.0,0.00014896,2]
[405791912,1771313345886,-500.0,0.00014896,2]
[405791913,1771313345909,-500.0,0.00014896,2]
[405791914,1771313345931,-500.0,0.00014896,2]
[405791915,1771313345953,-500.0,0.00014896,2]
[405791916,1771313345975,-500.0,0.00014896,2]
[405791917,1771313346000,-500.0,0.00014896,2]
[405791918,1771313346023,-500.0,0.00014896,2]
[405791919,1771313346045,-500.0,0.00014896,2]
[405791920,1771313346067,-500.0,0.00014896,2]
[405791921,1771313346088,-500.0,0.00014896,2]
[405791922,1771313346119,-500.0,0.00014896,2]
[405791923,1771313346143,-500.0,0.00014896,2]
[405791924,1771313346166,-500.0,0.00014896,2]
[405791925,1771313346189,-500.0,0.00014896,2]
[405791926,1771313346209,-157.63301716,0.00014896,2]
[405791927,1771313346230,-500.0,0.00014896,2]
[405791928,1771313346251,-500.0,0.00014896,2]
[405791929,1771313346272,-321.44948028,0.00014896,2]
[405791930,1771313349089,-178.55051972,0.00014896,2]
[405791931,1771313349112,-500.0,0.00014896,2]
[405791932,1771313349136,-500.0,0.00014896,2]
[405791933,1771313349163,-500.0,0.00014896,2]
[405791934,1771313349185,-250.47913422,0.00014897,2]
[405791935,1771313349207,-827.34076709,0.00014898,2]
[405791936,1771313349228,-500.0,0.00015001,2]
[405791937,1771313349255,-89.79803816,0.00015157,2]
[405791938,1771313355099,-118.79717477,0.00015157,2]
[405791939,1771313370695,1432.1866611,0.00014901,2]
[405791940,1771313411799,500.0,0.00014898,2]
[405791941,1771313414665,12894.2383902,0.00014901,2]
[405791979,1771313438453,-773.49996303,0.00015631,2]
[405791980,1771313438464,-500.0,0.0001584,2]
[405791981,1771313438475,-216.88117568,0.00016,2]
[405791982,1771313438484,-4015.25696405,0.00016036,2]
[405791983,1771313438494,-166.0,0.000161,2]
[405791984,1771313438504,-300.0,0.00016135,2]
[405791985,1771313438513,-431.08930538,0.00016135,2]
[405791986,1771313438522,-500.0,0.00016135,2]
[405791987,1771313438532,-500.0,0.00016135,2]
[405791988,1771313438541,-465.76330172,0.00016135,2]
[405791989,1771313438551,-500.0,0.00016135,2]
[405791990,1771313438561,-500.0,0.00016135,2]
[405791991,1771313438571,-500.0,0.00016144,2]
[405791992,1771313438580,-500.0,0.00016145,2]
[405791993,1771313438590,-500.0,0.00016145,2]
[405791994,1771313438600,-500.0,0.00016145,2]
[405791996,1771313438609,-500.0,0.00016145,2]
[405791998,1771313438618,-500.0,0.00016145,2]
[405792000,1771313438628,-412.81354015,0.00016145,2]
[405792002,1771313438637,-500.0,0.00016145,2]
[405792003,1771313438647,-500.0,0.00016145,2]
[405792005,1771313438656,-874.2669718,0.00016146,2]
[405792007,1771313438665,-44783.0486742,0.00016146,2]
[405792009,1771313438675,-10000.0,0.0001615,2]
[405792011,1771313438686,-152.61349273,0.00016168,2]
[405792013,1771313438695,-500.0,0.00016168,2]
[405792015,1771313438705,-154.13297903,0.00016168,2]
[405792017,1771313438715,-150.0,0.00016168,2]
[405792019,1771313438729,-500.0,0.00016168,2]
[405792021,1771313438739,-175.05645437,0.00016168,2]
[405792023,1771313438749,-171.7012045,0.00016183,2]
[405792025,1771313438760,-500.0,0.00016223,2]
[405792027,1771313438770,-150.0,0.00016223,2]
[405792029,1771313438780,-500.0,0.00016223,2]
[405792031,1771313438791,-233.88820602,0.00016278,2]
[405792033,1771313438800,-150.0,0.00016278,2]
[405792035,1771313438811,-500.0,0.00016278,2]
[405792037,1771313438821,-150.0,0.00016332,2]
[405792039,1771313438831,-500.0,0.00016332,2]
[405792041,1771313438841,-322.489035,0.0001637,2]
[405792043,1771313438850,-187.00031284,0.00016387,2]
[405792045,1771313438860,-500.0,0.00016387,2]
[405792047,1771313438871,-500.0,0.00016437,2]
[405792049,1771313438881,-500.0,0.00016438,2]
[405792051,1771313438891,-500.0,0.00016438,2]
[405792053,1771313438901,-168.28785032,0.00016438,2]
[405792056,1771313438912,-150.0,0.00016438,2]
[405792058,1771313438922,-284.86198359,0.00016438,2]
[405792059,1771313438932,-500.0,0.00016438,2]
[405792061,1771313438942,-150.0,0.00016438,2]
[405792063,1771313438951,-150.0,0.00016438,2]
[405792065,1771313438961,-215.18939784,0.00016438,2]
[405792068,1771313438973,-150.0,0.00016438,2]
[405792069,1771313438983,-500.0,0.00016438,2]
[405792071,1771313438993,-500.0,0.00016438,2]
[405792073,1771313439004,-500.0,0.00016438,2]
[405792075,1771313439014,-150.0,0.00016438,2]
[405792077,1771313439024,-500.0,0.00016438,2]
[405792079,1771313439034,-500.0,0.00016438,2]
[405792081,1771313439044,-257.44852683,0.00016438,2]
[405792083,1771313439053,-500.0,0.00016438,2]
[405792085,1771313439063,-500.0,0.00016438,2]
[405792087,1771313439073,-427.3280458,0.00016438,2]
[405792089,1771313439083,-500.0,0.00016438,2]
[405792091,1771313439093,-231.16,0.00016438,2]
[405792093,1771313439103,-500.0,0.00016438,2]
[405792095,1771313439113,-601.38261958,0.00016438,2]
[405792097,1771313439122,-278.76119084,0.00016442,2]
[405792099,1771313439132,-150.0,0.00016493,2]
[405792101,1771313439141,-500.0,0.00016493,2]
[405792103,1771313439151,-150.0,0.00016493,2]
[405792105,1771313439160,-151.03104481,0.00016493,2]
[405792107,1771313439170,-151.01267008,0.00016493,2]
[405792109,1771313439179,-500.0,0.00016493,2]
[405792111,1771313439192,-500.0,0.00016493,2]
[405792113,1771313439202,-500.0,0.00016493,2]
[405792115,1771313439212,-150.0,0.00016493,2]
[405792117,1771313439223,-590.90223723,0.00016493,2]
[405792119,1771313439232,-500.0,0.00016493,2]
[405792121,1771313439242,-500.0,0.00016493,2]
[405792123,1771313439252,-500.0,0.00016514,2]
[405792125,1771313439262,-250.0,0.00016514,2]
[405792127,1771313439271,-500.0,0.00016514,2]
[405792129,1771313439281,-250.0,0.00016514,2]
[405792131,1771313439290,-500.0,0.00016514,2]